bitfinex/quotes_SOLUSD_20240717
["timestamp","ask_amount","ask_price","bid_price","bid_amount"]
[1721238428277,6.3767,156.82,156.81,15.54]
[1721238429368,6.3763,156.83,156.81,15.54]
[1721238429589,6.3763,156.83,156.82,15.54]
[1721238430175,6.376,156.84,156.82,15.54]
[1721238430373,6.376,156.84,156.83,15.54]
[1721238430769,6.3765,156.83,156.82,15.54]
[1721238430990,6.3765,156.83,156.81,31.2644]
[1721238431290,6.3756,156.85,156.82,15.54]
[1721238431461,6.3759,156.84,156.83,1.27502452]
[1721238431668,6.3747,156.87,156.83,23.19102452]
[1721238431997,6.374,156.89,156.86,15.54]
[1721238432283,6.3739,156.89,156.87,16.81474686]
[1721238432473,6.3742,156.89,156.87,15.54]
[1721238432668,6.3742,156.88,156.87,15.54]
[1721238432872,31.473,156.91,156.86,15.54]
[1721238433075,6.3747,156.87,156.86,15.54]
[1721238433485,6.3751,156.86,156.85,15.54]
[1721238434567,6.3755,156.85,156.84,15.54]
[1721238434970,31.475,156.89,156.82,6.9815]
[1721238434971,6.3761,156.84,156.83,15.54]
[1721238435170,6.3763,156.83,156.82,15.54]
[1721238435377,6.376,156.84,156.81,31.2644]
[1721238435573,6.376,156.84,156.82,15.54]
[1721238436086,6.3763,156.83,156.82,15.54]
[1721238436292,6.3763,156.83,156.81,31.2644]
[1721238436890,6.3758,156.85,156.81,31.2644]
[1721238437102,6.3761,156.84,156.82,15.54]
[1721238437297,6.3763,156.83,156.81,31.2644]
[1721238437786,6.3767,156.82,156.81,31.2644]
[1721238438473,6.3767,156.82,156.81,15.7244]
[1721238439205,6.3764,156.83,156.81,31.2644]
[1721238440004,6.3767,156.82,156.81,15.7244]
[1721238440208,6.3771,156.81,156.77,6.3787]
[1721238440382,6.3772,156.81,156.76,31.5412]
[1721238440581,6.3772,156.81,156.78,15.54]
[1721238441411,6.3768,156.82,156.79,15.54]
[1721238441626,6.3768,156.82,156.8,1.27530352]
[1721238442320,6.3764,156.83,156.81,15.54]
[1721238443131,6.3764,156.83,156.8,16.81530352]
[1721238445304,6.3778,156.8,156.76,30.794]
[1721238445607,6.3782,156.79,156.77,1.27547123]
[1721238445995,6.3777,156.8,156.77,1.27547123]
[1721238446631,6.3779,156.79,156.77,1.27547123]
[1721238446924,6.3783,156.78,156.77,1.27547123]
[1721238447223,6.3787,156.77,156.76,15.254]
[1721238447520,6.3783,156.78,156.76,15.254]
[1721238448821,6.3787,156.77,156.76,15.254]
[1721238449122,6.3787,156.77,156.73,21.9203]
[1721238449419,21.9184,156.78,156.74,6.3799]
[1721238449714,6.3787,156.77,156.75,1.27569961]
[1721238449913,6.3791,156.76,156.73,15.54]
[1721238450129,6.3788,156.77,156.73,21.9203]
[1721238450735,6.3791,156.76,156.73,15.54]
[1721238451423,6.3772,156.81,156.77,6.3787]
[1721238451597,15.54,156.84,156.79,15.54]
[1721238451798,21.9156,156.85,156.81,6.3768]
[1721238452011,6.3771,156.81,156.79,15.54]
[1721238452214,15.8534,156.88,156.78,32.66391002]
[1721238452415,6.3766,156.83,156.79,15.54]
[1721238452618,21.9166,156.83,156.8,1.27528886]
[1721238452816,6.3779,156.79,156.77,15.54]
[1721238453018,6.3779,156.79,156.75,21.9194]
[1721238453399,15.54,156.8,156.75,16.81554014]
[1721238453400,6.3783,156.78,156.75,16.81554014]
[1721238453607,6.378,156.79,156.76,15.54]
[1721238454344,6.378,156.79,156.74,38.1783]
[1721238455506,6.3792,156.76,156.71,28.4315]
[1721238455732,6.3787,156.78,156.72,7.65648131]
[1721238456029,6.3787,156.78,156.71,22.0504]
[1721238456030,6.3787,156.78,156.73,6.38]
[1721238456227,6.3789,156.77,156.72,6.3807]
[1721238456729,6.3789,156.77,156.73,6.3803]
[1721238457422,6.3784,156.78,156.74,7.65566339]
[1721238457617,37.8818,156.82,156.74,17.22496339]
[1721238457800,45.0,156.81,156.74,17.22496339]
[1721238458007,6.3782,156.79,156.75,6.3795]
[1721238458207,6.3784,156.78,156.74,17.22496339]
[1721238458410,45.0,156.81,156.71,22.0502]
[1721238458622,6.3794,156.76,156.71,28.431]
[1721238459013,6.3794,156.76,156.72,6.3807]
[1721238459216,6.3788,156.77,156.73,1.27579494]
[1721238459433,6.3788,156.77,156.74,1.27576456]
[1721238460006,6.3788,156.77,156.73,6.3803]
[1721238460210,6.3784,156.78,156.74,1.27576469]
[1721238462423,6.3784,156.78,156.73,6.3803]
[1721238462735,6.3787,156.77,156.74,1.27565245]
[1721238462935,6.3787,156.77,156.73,6.3803]
[1721238463147,6.3787,156.77,156.72,6.5506]
[1721238463526,6.3787,156.77,156.73,6.3803]
[1721238463725,6.3787,156.77,156.72,6.5506]
[1721238463926,15.9452,156.79,156.71,22.0502]
[1721238464136,15.9452,156.79,156.7,16.1906]
[1721238464137,6.3802,156.74,156.7,16.1906]
[1721238464439,76.8859,156.81,156.7,16.1906]
[1721238464440,15.9474,156.77,156.7,16.1906]
[1721238464749,15.9474,156.77,156.68,22.338]
[1721238464750,45.0,156.76,156.68,22.338]
[1721238465053,6.3811,156.72,156.68,15.9556]
[1721238465543,6.3813,156.71,156.68,15.9556]
[1721238465839,6.3809,156.72,156.68,15.9556]
[1721238466134,6.3809,156.72,156.68,22.338]
[1721238466327,6.3809,156.72,156.68,15.9556]
[1721238466521,6.3809,156.72,156.68,22.3379]
[1721238466837,6.3809,156.72,156.68,15.9556]
[1721238467538,6.3812,156.71,156.68,15.9556]
[1721238469944,6.3809,156.72,156.68,15.9556]
[1721238470145,6.3804,156.73,156.68,15.9556]
[1721238470647,6.3808,156.72,156.69,1.27612362]
[1721238471940,6.3812,156.71,156.69,1.27612362]
[1721238472240,31.5604,156.75,156.66,15.6881]
[1721238472428,6.382,156.69,156.66,15.6881]
[1721238472637,6.3815,156.71,156.66,22.0711]
[1721238473045,6.3815,156.71,156.67,6.3827]
[1721238473344,6.3815,156.71,156.66,22.0711]
[1721238473554,6.3816,156.7,156.66,22.0711]
[1721238474364,6.3816,156.7,156.67,15.66]
[1721238475257,6.3812,156.72,156.68,1.27628552]
[1721238475552,6.3807,156.73,156.69,15.66]
[1721238475927,6.3809,156.72,156.69,15.66]
[1721238476462,15.66,156.77,156.71,15.66]
[1721238476675,6.3796,156.75,156.72,16.93590053]
[1721238476859,6.3796,156.75,156.73,15.66]
[1721238477057,6.3793,156.76,156.74,1.27591478]
[1721238477644,6.3793,156.76,156.73,15.66]
[1721238477869,6.3797,156.75,156.73,15.66]
[1721238478474,6.3797,156.75,156.72,31.3281]
[1721238478670,6.38,156.74,156.72,31.3281]
[1721238479045,15.66,156.77,156.72,32.60397045]
[1721238479250,6.3787,156.77,156.74,15.66]
[1721238479469,15.9422,156.82,156.75,1.27571447]
[1721238479671,6.3783,156.78,156.76,15.66]
[1721238480170,6.3781,156.79,156.77,1.27559337]
[1721238480368,15.66,156.82,156.77,16.93559337]
[1721238480592,15.66,156.83,156.78,15.66]
[1721238480797,6.3776,156.8,156.79,1.27542875]
[1721238481487,15.66,156.83,156.78,15.66]
[1721238481695,6.377,156.82,156.79,16.93527322]
[1721238481974,6.377,156.82,156.8,1.27528361]
[1721238482183,6.3764,156.83,156.8,16.93528361]
[1721238482472,6.3764,156.83,156.8,1.27528361]
[1721238482670,6.3769,156.82,156.8,1.27528361]
[1721238482874,6.3769,156.82,156.81,1.27528133]
[1721238483070,6.3769,156.82,156.78,1.27528069]
[1721238483278,6.3763,156.83,156.79,15.0659]
[1721238483658,6.3763,156.83,156.8,0.17]
[1721238483864,6.3763,156.83,156.79,15.0659]
[1721238483865,15.9376,156.87,156.79,15.0659]
[1721238484291,15.9392,156.85,156.79,15.0659]
[1721238484460,31.27,156.87,156.79,21.4435]
[1721238484778,15.9372,156.87,156.79,15.0659]
[1721238485078,45.0,156.86,156.79,15.0659]
[1721238485379,45.0,156.87,156.8,1.2752099]
[1721238485756,6.377,156.82,156.79,15.0659]
[1721238485964,6.3774,156.81,156.79,15.0659]
[1721238486378,6.3775,156.8,156.79,15.0659]
[1721238486555,6.3772,156.81,156.79,15.0659]
[1721238486755,6.3767,156.83,156.8,1.27530851]
[1721238486960,6.3767,156.82,156.8,1.27530851]
[1721238488789,6.3764,156.83,156.8,1.27530851]
[1721238490474,6.3764,156.83,156.79,21.6137]
[1721238490672,6.3775,156.81,156.79,15.0659]
[1721238490874,6.3775,156.8,156.79,15.0659]
[1721238492275,6.3772,156.81,156.79,15.0659]
[1721238492881,6.3785,156.78,156.75,6.1206]
[1721238493483,6.3785,156.78,156.75,7.39621668]
[1721238494091,6.3788,156.77,156.74,15.4243]
[1721238494903,6.3783,156.78,156.74,15.4243]
[1721238496197,15.9426,156.82,156.74,15.4243]
[1721238496401,6.379,156.77,156.74,15.4243]
[1721238496714,6.379,156.77,156.72,22.332]
[1721238497078,6.3784,156.78,156.73,6.3803]
[1721238497277,6.3784,156.78,156.74,6.3798]
[1721238497700,6.3778,156.8,156.75,1.2757186]
[1721238497911,6.3781,156.79,156.75,6.3794]
[1721238498276,6.3773,156.81,156.76,6.3789]
[1721238498483,6.3773,156.81,156.77,7.65411853]
[1721238498788,15.9391,156.85,156.78,7.65371937]
[1721238498988,6.3764,156.83,156.78,7.65371937]
[1721238499509,6.3767,156.82,156.78,7.65371937]
[1721238499804,6.3765,156.83,156.79,6.3778]
[1721238500023,6.3768,156.82,156.78,22.3238]
[1721238500502,6.3764,156.83,156.79,6.3779]
[1721238500710,6.3764,156.83,156.78,22.3238]
[1721238501092,6.3764,156.83,156.79,1.27523577]
[1721238501384,6.3764,156.83,156.79,6.3779]
[1721238501883,6.3767,156.82,156.78,15.9456]
[1721238502088,6.3773,156.81,156.79,1.27535294]
[1721238503180,6.3773,156.81,156.78,1.27536453]
[1721238505288,6.3773,156.81,156.77,22.2693]
[1721238506096,6.3773,156.81,156.77,28.648]
[1721238506922,6.3773,156.81,156.78,1.27537418]
[1721238507115,6.3768,156.82,156.78,7.65367418]
[1721238507804,6.3764,156.83,156.78,7.65367418]
[1721238508319,15.935,156.89,156.79,1.27526199]
[1721238508489,15.935,156.89,156.81,15.9419]
[1721238508819,15.935,156.89,156.82,1.27508734]
[1721238508997,15.935,156.89,156.81,15.9419]
[1721238509406,6.376,156.84,156.81,15.9419]
[1721238509810,6.376,156.84,156.82,1.2751203]
[1721238510115,6.376,156.84,156.81,15.9419]
[1721238510909,6.376,156.84,156.8,6.3775]
[1721238511230,15.935,156.89,156.82,6.3765]
[1721238511432,6.3755,156.85,156.81,6.377]
[1721238511642,15.935,156.89,156.8,15.9432]
[1721238511939,6.3749,156.87,156.83,6.3762]
[1721238512106,6.3749,156.87,156.84,1.27495505]
[1721238512305,6.3751,156.86,156.84,1.27495505]
[1721238512835,15.9321,156.92,156.84,1.27495505]
[1721238513139,6.3749,156.87,156.84,1.27495505]
[1721238513637,45.0,156.91,156.82,22.318]
[1721238513638,6.3751,156.86,156.85,1.27495199]
[1721238513828,6.3751,156.86,156.83,1.27497738]
[1721238514243,6.3748,156.87,156.83,24.01807738]
[1721238515138,15.934,156.9,156.83,24.01807738]
[1721238515139,6.3752,156.86,156.83,16.367]
[1721238516113,15.934,156.9,156.83,16.367]
[1721238516516,6.3759,156.84,156.83,16.367]
[1721238518532,6.3756,156.85,156.83,16.367]
[1721238518835,6.3751,156.86,156.83,16.367]
[1721238519347,15.9334,156.91,156.83,16.367]
[1721238519556,45.0,156.9,156.84,1.2749352]
[1721238520043,6.3747,156.87,156.84,1.2749352]
[1721238520248,6.3752,156.86,156.83,16.367]
[1721238520422,15.935,156.89,156.83,16.367]
[1721238520848,6.3755,156.85,156.83,16.367]
[1721238521936,6.3752,156.86,156.83,16.367]
[1721238523338,6.3748,156.87,156.83,24.01811448]
[1721238523535,6.3744,156.88,156.84,6.3759]
[1721238523840,6.3747,156.87,156.83,22.7431]
[1721238524424,6.3751,156.86,156.83,16.367]
[1721238524921,15.9338,156.9,156.83,16.367]
[1721238524922,6.3758,156.85,156.83,16.367]
[1721238526643,22.0051,156.86,156.83,16.367]
[1721238527443,6.3751,156.86,156.83,16.367]
[1721238528145,15.63,156.87,156.79,15.9436]
[1721238528346,6.3765,156.83,156.79,22.3215]
[1721238528640,6.3767,156.82,156.79,31.5736]
[1721238528943,22.0064,156.83,156.79,37.9515]
[1721238529239,6.3767,156.82,156.79,15.9436]
[1721238530537,15.63,156.83,156.79,15.9436]
[1721238530747,15.63,156.83,156.78,37.9534]
[1721238530748,15.63,156.81,156.75,31.2476]
[1721238530917,6.3776,156.8,156.76,15.63]
[1721238531119,6.3772,156.81,156.77,15.63]
[1721238531320,15.63,156.83,156.78,32.85130667]
[1721238531649,6.376,156.84,156.8,22.0075]
[1721238531935,6.376,156.84,156.8,15.63]
[1721238532138,6.376,156.84,156.81,15.63]
[1721238532345,0.58399476,156.88,156.82,15.8354]
[1721238532525,22.2132,156.91,156.82,15.8354]
[1721238532526,15.63,156.89,156.84,15.63]
[1721238533131,15.63,156.89,156.82,15.8354]
[1721238533132,15.63,156.89,156.85,1.2750345]
[1721238533332,6.3744,156.88,156.86,1.27485953]
[1721238534134,6.3747,156.87,156.85,15.63]
[1721238534330,6.3751,156.86,156.83,15.9405]
[1721238534642,6.3752,156.86,156.82,15.8354]
[1721238535141,6.3755,156.85,156.82,15.8354]
[1721238536234,6.3751,156.86,156.83,1.27507487]
[1721238536937,6.3748,156.87,156.83,1.27507487]
[1721238537137,6.3748,156.87,156.82,22.2121]
[1721238537341,6.3751,156.86,156.82,22.2121]
[1721238539834,6.3748,156.87,156.83,1.27495186]
[1721238540033,6.3752,156.86,156.82,22.2121]
[1721238540252,6.3756,156.85,156.82,15.8354]
[1721238544635,6.3751,156.86,156.83,1.27512932]
[1721238546148,6.3751,156.86,156.82,15.8354]
[1721238547347,6.3751,156.86,156.83,1.27504774]
[1721238547647,6.3739,156.89,156.85,6.3754]
[1721238547846,6.3743,156.88,156.84,23.59043814]
[1721238548155,6.3743,156.88,156.84,17.21453814]
[1721238548463,6.3739,156.89,156.85,6.3754]
[1721238548640,6.3739,156.89,156.86,1.27480868]
[1721238549256,6.3743,156.88,156.86,1.27480868]
[1721238549640,6.3743,156.88,156.84,22.3152]
[1721238549956,6.3743,156.88,156.85,1.27483156]
[1721238550156,6.3743,156.88,156.86,1.27482852]
[1721238550742,6.374,156.89,156.84,22.3152]
[1721238551355,6.3743,156.88,156.84,22.3152]
[1721238551542,6.374,156.89,156.85,1.27481656]
[1721238551742,6.374,156.89,156.85,6.3755]
[1721238552138,6.374,156.89,156.86,1.27468351]
[1721238552344,6.374,156.89,156.85,6.3755]
[1721238553832,6.3744,156.88,156.84,16.1095]
[1721238554360,6.3744,156.88,156.86,15.62]
[1721238555442,6.3744,156.88,156.85,15.62]
[1721238555648,15.62,156.91,156.86,15.62]
[1721238555861,6.3741,156.89,156.86,15.62]
[1721238556162,6.3743,156.88,156.86,15.62]
[1721238556666,6.3747,156.87,156.85,15.62]
[1721238557059,6.3744,156.88,156.86,1.27480311]
[1721238559566,6.3747,156.87,156.86,1.27480311]
[1721238560256,15.9361,156.88,156.82,15.8354]
[1721238560452,6.3762,156.84,156.82,15.8354]
[1721238560659,6.3763,156.83,156.82,15.8354]
[1721238560845,6.3774,156.81,156.79,21.9479]
[1721238561051,6.3768,156.82,156.79,6.3279]
[1721238561446,15.62,156.83,156.79,6.3279]
[1721238561447,21.9964,156.83,156.79,6.3279]
[1721238561642,6.3767,156.82,156.79,6.3279]
[1721238564264,6.377,156.82,156.8,1.27525221]
[1721238565065,22.2355,156.89,156.8,7.65268983]
[1721238565066,6.3762,156.84,156.8,7.65268983]
[1721238565256,38.1705,156.89,156.8,7.65268983]
[1721238565257,15.62,156.86,156.81,15.62]
[1721238565464,15.62,156.86,156.82,1.27507192]
[1721238565655,6.3761,156.84,156.82,1.27511537]
[1721238566669,6.3761,156.84,156.81,1.27514698]
[1721238567250,6.3763,156.83,156.82,1.27514194]
[1721238567574,6.3768,156.82,156.79,22.4419]
[1721238569567,21.9964,156.83,156.79,28.8198]
[1721238570991,6.3764,156.83,156.8,1.27521867]
[1721238571273,6.376,156.84,156.8,1.27521867]
[1721238571474,15.9344,156.9,156.81,17.21737555]
[1721238571650,15.9344,156.9,156.83,15.62]
[1721238571651,6.3751,156.86,156.83,15.62]
[1721238571850,15.62,156.86,156.81,15.62]
[1721238572079,6.3764,156.83,156.81,15.62]
[1721238572270,6.376,156.84,156.8,16.89517341]
[1721238572587,6.376,156.84,156.79,12.8757]
[1721238572783,6.3765,156.83,156.79,28.4957]
[1721238572958,21.9967,156.82,156.78,38.2526]
[1721238573378,6.3771,156.81,156.78,31.8744]
[1721238574256,21.9968,156.82,156.78,38.2526]
[1721238574451,21.9974,156.81,156.78,15.9294]
[1721238574856,6.3775,156.8,156.78,15.9294]
[1721238575053,21.9976,156.8,156.76,6.379]
[1721238575275,15.62,156.77,156.74,15.1808]
[1721238575480,15.9421,156.82,156.74,15.1808]
[1721238575666,15.62,156.78,156.74,15.1808]
[1721238576378,21.9985,156.78,156.74,21.5607]
[1721238576963,21.9987,156.77,156.74,15.1808]
[1721238577475,15.9421,156.82,156.72,15.9516]
[1721238577476,21.9994,156.76,156.72,15.9516]
[1721238577784,21.9994,156.76,156.72,22.3322]
[1721238578385,15.62,156.76,156.72,22.3322]
[1721238578583,21.9988,156.77,156.73,6.3803]
[1721238578994,15.62,156.76,156.72,23.60803998]
[1721238579186,15.62,156.76,156.72,22.3322]
[1721238579660,15.62,156.76,156.73,1.27584049]
[1721238579865,15.62,156.77,156.74,1.27583826]
[1721238580077,15.62,156.78,156.74,1.27583826]
[1721238580279,21.9986,156.78,156.74,1.27583826]
[1721238580863,21.9986,156.78,156.74,7.65563826]
[1721238581784,15.62,156.78,156.75,6.3794]
[1721238582079,6.3785,156.78,156.74,21.9999]
[1721238582261,21.9985,156.78,156.74,6.3799]
[1721238582458,21.9985,156.78,156.73,15.96]
[1721238582459,6.3788,156.77,156.75,1.27563385]
[1721238582779,21.9984,156.78,156.75,1.27563385]
[1721238583283,6.3784,156.78,156.75,1.27563385]
[1721238583470,6.3788,156.77,156.75,1.27563385]
[1721238583670,6.3792,156.76,156.73,15.79]
[1721238583982,6.3792,156.76,156.73,0.17]
[1721238584863,6.3792,156.76,156.73,1.44574629]
[1721238585064,6.3792,156.76,156.73,1.27574654]
[1721238585476,6.3788,156.77,156.73,16.89574654]
[1721238585887,21.9988,156.77,156.73,1.27574654]
[1721238586087,15.62,156.77,156.72,31.5716]
[1721238586259,15.62,156.76,156.71,22.1032]
[1721238586593,21.9997,156.75,156.71,6.3132]
[1721238586969,21.9997,156.75,156.71,12.6943]
[1721238587676,15.62,156.75,156.72,1.27588361]
[1721238587876,15.62,156.77,156.72,16.89588361]
[1721238588585,15.62,156.78,156.73,15.62]
[1721238588779,15.62,156.78,156.74,1.2757064]
[1721238588973,6.379,156.77,156.74,1.2757064]
[1721238589169,6.3792,156.76,156.74,1.2757064]
[1721238590787,6.3796,156.75,156.73,15.62]
[1721238590985,6.3796,156.75,156.72,15.62]
[1721238591984,6.3796,156.75,156.71,44.6068]
[1721238592164,6.3796,156.75,156.72,0.17]
[1721238595569,6.3796,156.75,156.71,38.1236]
[1721238595765,6.3796,156.75,156.71,37.9536]
[1721238597303,21.9866,156.82,156.73,15.9506]
[1721238597501,45.0,156.81,156.74,1.27576461]
[1721238597675,45.0,156.81,156.74,7.65556461]
[1721238597676,21.9986,156.78,156.74,7.65556461]
[1721238597991,15.62,156.77,156.74,7.65556461]
[1721238598482,21.9986,156.78,156.74,1.27576461]
[1721238598687,6.3788,156.77,156.74,1.27576461]
[1721238598891,21.9985,156.78,156.74,1.27576461]
[1721238599481,15.9399,156.84,156.75,16.89570908]
[1721238599784,6.3782,156.79,156.75,23.27490908]
[1721238600692,15.62,156.8,156.75,23.27490908]
[1721238600693,6.3783,156.78,156.75,16.89570908]
[1721238600886,6.3783,156.78,156.75,15.62]
[1721238601270,6.3783,156.78,156.74,22.1698]
[1721238601484,21.9983,156.78,156.74,15.79]
[1721238601686,6.3789,156.77,156.74,0.17]
[1721238601865,6.3789,156.77,156.73,38.1208]
[1721238602065,21.9985,156.78,156.74,1.27568143]
[1721238602481,15.62,156.79,156.74,16.89568143]
[1721238602798,15.62,156.79,156.75,22.1694]
[1721238603093,6.3778,156.8,156.76,1.27556354]
[1721238603094,21.9978,156.8,156.76,1.27556354]
[1721238603282,6.3779,156.79,156.77,1.27552964]
[1721238603977,21.9976,156.8,156.77,1.27552964]
[1721238604372,6.3768,156.82,156.77,23.61732964]
[1721238604670,21.9968,156.82,156.78,15.62]
[1721238604870,6.3771,156.81,156.79,1.2753525]
[1721238605082,6.3771,156.81,156.8,1.2753735]
[1721238605911,6.3776,156.8,156.77,15.9634]
[1721238606371,21.9976,156.8,156.77,15.9634]
[1721238606574,6.95850381,156.87,156.77,15.9634]
[1721238606575,6.3779,156.79,156.77,15.9634]
[1721238608068,15.9432,156.81,156.73,6.2287]
[1721238608264,21.999,156.77,156.73,6.3801]
[1721238608669,15.62,156.77,156.73,6.3801]
[1721238609395,21.9984,156.78,156.73,22.0001]
[1721238609608,15.9405,156.84,156.75,21.9993]
[1721238609798,15.62,156.8,156.75,21.9993]
[1721238610102,15.62,156.8,156.75,15.62]
[1721238610103,6.378,156.79,156.75,15.62]
[1721238610571,6.378,156.79,156.74,6.7199]
[1721238610572,6.3784,156.78,156.73,22.3308]
[1721238610772,6.3787,156.77,156.74,15.62]
[1721238610970,6.3787,156.77,156.72,31.6324]
[1721238610971,15.62,156.77,156.72,31.6324]
[1721238611181,15.62,156.77,156.72,31.4624]
[1721238611393,15.62,156.76,156.72,15.8424]
[1721238611900,21.9993,156.76,156.72,15.8424]
[1721238612101,6.3796,156.75,156.72,15.8424]
[1721238612591,21.9992,156.76,156.72,15.8424]
[1721238613090,6.3792,156.76,156.72,15.8424]
[1721238613402,15.62,156.75,156.72,15.8424]
[1721238614387,21.9992,156.76,156.72,15.8424]
[1721238614789,15.62,156.76,156.72,22.223]
[1721238615492,21.9984,156.78,156.73,22.0003]
[1721238615704,6.3788,156.77,156.73,15.62]
[1721238616386,21.9988,156.77,156.72,53.7947]
[1721238618304,6.3788,156.77,156.73,16.89586721]
[1721238618507,6.3788,156.77,156.74,1.27585115]
[1721238618909,6.3788,156.77,156.73,15.62]
[1721238619216,6.3792,156.76,156.72,31.7941]
[1721238619383,6.3792,156.76,156.72,47.4141]
[1721238619583,21.9992,156.76,156.72,31.7941]
[1721238619986,15.9464,156.78,156.69,37.6882]
[1721238620290,22.0005,156.73,156.68,15.4378]
[1721238620491,15.62,156.72,156.68,15.4378]
[1721238620820,15.62,156.71,156.66,22.0028]
[1721238620985,15.62,156.71,156.67,6.3828]
[1721238621396,15.62,156.71,156.68,6.3823]
[1721238621587,15.62,156.72,156.68,6.3823]
[1721238621811,22.0008,156.72,156.67,22.0027]
[1721238622413,15.62,156.71,156.67,6.3827]
[1721238622733,22.0009,156.72,156.67,22.0027]
[1721238622888,15.62,156.71,156.67,6.3827]
[1721238624092,15.62,156.71,156.66,22.0031]
[1721238624287,22.0013,156.71,156.66,22.0031]
[1721238624499,22.0013,156.71,156.64,15.0581]
[1721238624500,22.0023,156.69,156.64,30.6781]
[1721238625094,15.62,156.69,156.64,37.062]
[1721238625395,15.62,156.69,156.64,30.6781]
[1721238625621,15.62,156.69,156.64,37.0621]
[1721238625929,15.62,156.68,156.64,21.442]
[1721238626285,15.62,156.68,156.64,37.062]
[1721238627798,15.62,156.68,156.65,6.3835]
[1721238628120,15.62,156.68,156.64,37.4018]
[1721238628425,15.62,156.68,156.61,22.1099]
[1721238628626,15.62,156.67,156.62,15.62]
[1721238628838,15.9534,156.71,156.61,15.9626]
[1721238628990,15.62,156.65,156.59,16.4269]
[1721238629323,45.17,156.7,156.59,16.4269]
[1721238629324,22.0033,156.66,156.61,22.0051]
[1721238629521,22.0033,156.66,156.62,1.27681668]
[1721238629906,15.62,156.66,156.62,7.66161668]
[1721238630116,22.0029,156.67,156.62,23.28161668]
[1721238630463,15.62,156.66,156.61,15.62]
[1721238630713,22.0037,156.65,156.6,31.5836]
[1721238631122,6.3844,156.64,156.6,15.62]
[1721238632104,6.3844,156.63,156.59,32.0469]
[1721238632405,22.0044,156.63,156.59,16.4269]
[1721238634522,15.62,156.63,156.58,15.62]
[1721238634727,15.62,156.6,156.56,0.8110305]
[1721238635225,22.0057,156.6,156.56,0.8110305]
[1721238635732,15.62,156.6,156.56,7.1981305]
[1721238635902,15.62,156.6,156.57,1.27721042]
[1721238636101,15.62,156.6,156.57,7.66401042]
[1721238636330,15.62,156.6,156.57,1.27721042]
[1721238636516,22.0058,156.6,156.56,0.8110305]
[1721238636735,15.62,156.59,156.56,0.8110305]
[1721238636938,6.3858,156.6,156.56,0.8110305]
[1721238637124,15.62,156.58,156.56,0.8110305]
[1721238638534,15.62,156.57,156.56,0.8110305]
[1721238643267,22.0069,156.57,156.56,0.8110305]
[1721238643652,15.62,156.57,156.56,0.8110305]
[1721238644867,22.0069,156.57,156.56,0.8110305]
[1721238646885,67.0069,156.57,156.56,0.8110305]
[1721238647049,82.7969,156.57,156.56,0.8110305]
[1721238647450,67.1769,156.57,156.56,0.8110305]
[1721238648752,15.9698,156.55,156.45,6.3914]
[1721238649063,15.62,156.49,156.45,6.3914]
[1721238649377,15.62,156.48,156.44,22.3722]
[1721238649575,15.62,156.48,156.44,15.9801]
[1721238649576,15.62,156.47,156.44,15.9801]
[1721238650188,15.62,156.47,156.42,31.3447]
[1721238650189,15.62,156.46,156.42,15.7247]
[1721238650355,15.9739,156.51,156.42,15.7247]
[1721238650557,22.0114,156.46,156.42,15.7247]